[Event "European Womens-ch 2025"]
[Site "Rhodes"]
[Date "2025.03.31"]
[Round "1.55"]
[White "Sandu, Mihaela"]
[Black "Nahapetyan, Ani"]
[Result "1/2-1/2"]
[Annotator "RC"]
[ECO "B92"]
[WhiteElo "2230"]
[BlackElo "1887"]
[PlyCount "179"]
[EventDate "2025.03.29"]
[EventType "swiss"]
[EventCountry "GRE"]
[SourceTitle "playchess.com"]
[Source "ChessBase"]
[SourceQuality "1"]
[TimeControl "40/5400+30:1800+30"]

1. e4 {[%emt 0:00:06]} c5 {[%emt 0:00:08]} 2. Nf3 {[%emt 0:00:04]} d6 {[%emt 0:00:15]} 3. d4 {[%emt 0:00:05]} cxd4 {[%emt 0:00:06]} 4. Nxd4 {[%emt 0:00:02]} Nf6 {[%emt 0:00:14]} 5. Nc3 {[%emt 0:00:04]} a6 {[%emt 0:00:17]} 6. Be2 {[%emt 0:00:05]} e5 {[%emt 0:00:12]} 7. Nb3 {[%emt 0:00:05]} Be7 {[%emt 0:00:12]} 8. O-O {[%emt 0:00:06]} O-O {[%emt 0:00:14]} 9. Be3 {[%emt 0:00:33]} Be6 {[%emt 0:00:33]} 10. Qd2 {[%emt 0:00:08]} Nbd7 {[%emt 0:00:47]} 11. a4 {[%emt 0:00:44]} Rc8 {[%emt 0:01:28]} 12. a5 {[%emt 0:00:18]} Ng4 {[%emt 0:15:29]} 13. Bxg4 {[%emt 0:05:24]} Bxg4 {[%emt 0:00:10]} 14. Nc1 {[%emt 0:07:38]} Be6 {[%emt 0:02:19]} 15. Nd3 {[%emt 0:02:10]} Nf6 {[%emt 0:03:13]} 16. Bb6 {[%emt 0:05:21]} Qd7 {[%emt 0:01:15]} 17. Rfe1 {[%emt 0:01:10]} Bd8 {[%emt 0:07:01]} 18. Be3 {[%emt 0:20:50]} Ng4 {[%emt 0:08:01]} 19. Nb4 {[%emt 0:04:43]} Nxe3 {[%emt 0:03:29]} 20. Qxe3 {[%emt 0:00:19]} Rc5 {[%emt 0:03:50]} 21. Nd3 {[%emt 0:05:55]} Rxa5 {[%emt 0:12:05]} 22. Rad1 {[%emt 0:01:15]} Qc6 {[%emt 0:03:00]} 23. Kh1 {[%emt 0:03:19]} Bc4 {[%emt 0:05:55]} 24. Qd2 {[%emt 0:09:21]} Qb6 {[%emt 0:10:01]} 25. b3 {[%emt 0:10:34]} Bxd3 {[%emt 0:01:12]} 26. Qxd3 {[%emt 0:01:08]} Qxf2 {[%emt 0:02:04]} 27. Re3 {[%emt 0:06:13]} Bb6 {[%emt 0:02:19]} 28. Rf3 {[%emt 0:00:06]} Qh4 {[%emt 0:02:54]} 29. Nd5 {[%emt 0:03:56]} Bd4 {[%emt 0:01:00]} 30. c3 {[%emt 0:01:25]} Ba7 {[%emt 0:00:30]} 31. Rdf1 {[%emt 0:00:30]} Rc5 {[%emt 0:00:30]} 32. Rh3 {[%emt 0:00:30]} Rxd5 {[%emt 0:00:30]} 33. Qxd5 {[%emt 0:00:30]} Qe7 {[%emt 0:00:30]} 34. Rhf3 {[%emt 0:00:30]} Bb6 {[%emt 0:00:30]} 35. g3 {[%emt 0:00:30]} Qd7 {[%emt 0:00:30]} 36. Kg2 {[%emt 0:00:30]} Bd8 {[%emt 0:00:30]} 37. Rd1 {[%emt 0:00:30]} Be7 {[%emt 0:00:30]} 38. Qxe5 {[%emt 0:00:30]} f6 {[%emt 0:00:30]} 39. Qd5+ {[%emt 0:00:30]} Kh8 {[%emt 0:06:25]} 40. c4 {[%emt 0:00:00]} Qc7 {[%emt 0:00:00]} 41. Rfd3 {[%emt 0:11:21]} Rc8 {[%emt 0:04:56]} 42. h4 {[%emt 0:01:55]} Qb8 {[%emt 0:03:55]} 43. Qe6 {[%emt 0:02:20]} Bf8 {[%emt 0:00:29]} 44. Rd5 {[%emt 0:03:18]} Re8 {[%emt 0:00:55]} 45. Qg4 {[%emt 0:00:12]} Qc7 {[%emt 0:01:31]} 46. h5 {[%emt 0:01:39]} h6 {[%emt 0:00:50]} 47. Qg6 {[%emt 0:04:32]} Qc8 {[%emt 0:02:28]} 48. c5 {[%emt 0:10:03]} dxc5 {[%emt 0:01:52]} 49. Rd7 {[%emt 0:01:12]} b5 {[%emt 0:07:07]} 50. Qf7 {[%emt 0:04:11]} c4 {[%emt 0:04:30]} 51. bxc4 {[%emt 0:03:59]} bxc4 {[%emt 0:01:24]} 52. Rc7 {[%emt 0:00:14]} Qb8 {[%emt 0:06:34]} 53. Qxc4 {[%emt 0:00:34]} Rxe4 {[%emt 0:01:52]} 54. Qxe4 {[%emt 0:00:31]} Qxc7 {[%emt 0:00:04]} 55. Qd5 {[%emt 0:01:45]} Qe7 {[%emt 0:02:11]} 56. Rd2 {[%emt 0:00:23]} Qb4 {[%emt 0:03:11]} 57. Re2 {[%emt 0:00:31]} Qb5 {[%emt 0:00:58]} 58. Qxb5 {[%emt 0:02:10]} axb5 {[%emt 0:00:10]} 59. Rd2 {[%emt 0:00:17]} Kg8 {[%emt 0:01:59]} 60. Rd7 {[%emt 0:00:05]} b4 {[%emt 0:00:10]} 61. Rb7 {[%emt 0:00:07]} Bd6 {[%emt 0:00:35]} 62. Kf3 {[%emt 0:00:15]} Kf8 {[%emt 0:00:44]} 63. g4 {[%emt 0:00:11]} Kg8 {[%emt 0:02:11]} 64. Ke4 {[%emt 0:00:14]} Kh7 {[%emt 0:00:10]} 65. Kd5 {[%emt 0:00:29]} Bf8 {[%emt 0:00:27]} 66. Ke6 {[%emt 0:00:21]} Bc5 {[%emt 0:00:23]} 67. Rb5 {[%emt 0:00:51]} Bf8 {[%emt 0:00:16]} 68. Kf7 {[%emt 0:00:09]} Bd6 {[%emt 0:00:04]} 69. Rb7 {[%emt 0:00:11]} Bc5 {[%emt 0:01:48]} 70. Rb8 {[%emt 0:00:13]} Bd4 {[%emt 0:00:28]} 71. Rxb4 {[%emt 0:00:13]} Bc3 {[%emt 0:00:18]} 72. Rc4 {[%emt 0:00:06]} Be5 {[%emt 0:00:07]} 73. Ke6 {[%emt 0:00:50]} Ba1 {[%emt 0:00:10]} 74. Rc8 {[%emt 0:00:37]} Bd4 {[%emt 0:00:12]} 75. Rd8 {[%emt 0:00:08]} Bc3 {[%emt 0:00:13]} 76. Rf8 {[%emt 0:00:06]} Bb2 {[%emt 0:00:23]} 77. Rf7 {[%emt 0:00:17]} Bc3 {[%emt 0:00:17]} 78. Kd7 {[%emt 0:00:49]} Bd4 {[%emt 0:00:20]} 79. Ke8 {[%emt 0:00:05]} Bc3 {[%emt 0:00:12]} 80. Kf8 {[%emt 0:00:04]} Bb4+ {[%emt 0:00:03]} 81. Ke8 {[%emt 0:00:03]} Bc3 {[%emt 0:00:20]} 82. Rc7 {[%emt 0:00:07]} Be5 {[%emt 0:00:33]} 83. Rb7 {[%emt 0:00:05]} Bd4 {[%emt 0:00:22]} 84. Kf7 {[%emt 0:00:04]} Be5 {[%emt 0:00:51]} 85. Re7 {[%emt 0:00:10]} Bc3 {[%emt 0:00:15]} 86. Re8 {[%emt 0:00:05]} Bd4 {[%emt 0:00:17]} 87. Rg8 {[%emt 0:00:04]} f5 {[%emt 0:00:04]} 88. gxf5 {[%emt 0:00:08]} Bf6 {[%emt 0:00:14]} 89. Ra8 {[%emt 0:00:17]} Bd4 {[%emt 0:00:21]} 90. Rd8 {[%emt 0:01:15]} 1/2-1/2

[Event "European Womens-ch 2025"]
[Site "Rhodes"]
[Date "2025.03.31"]
[Round "1.56"]
[White "Kalyva, Kyriaki"]
[Black "Zherebtsova, Alexandra"]
[Result "0-1"]
[Annotator "RC"]
[ECO "A14"]
[WhiteElo "1885"]
[BlackElo "2229"]
[PlyCount "74"]
[EventDate "2025.03.29"]
[EventType "swiss"]
[EventCountry "GRE"]
[SourceTitle "playchess.com"]
[Source "ChessBase"]
[SourceQuality "1"]
[TimeControl "40/5400+30:1800+30"]

1. Nf3 {[%emt 0:00:03]} Nf6 {[%emt 0:00:29]} 2. c4 {[%emt 0:00:07]} e6 {[%emt 0:00:16]} 3. b3 {[%emt 0:00:30]} b6 {[%emt 0:09:15]} 4. Bb2 {[%emt 0:02:08]} Bb7 {[%emt 0:00:10]} 5. g3 {[%emt 0:01:58]} Be7 {[%emt 0:03:15]} 6. Bg2 {[%emt 0:00:23]} O-O {[%emt 0:01:31]} 7. O-O {[%emt 0:00:18]} c5 {[%emt 0:04:20]} 8. Nc3 {[%emt 0:02:41]} d5 {[%emt 0:12:26]} 9. cxd5 {[%emt 0:02:02]} Nxd5 {[%emt 0:01:58]} 10. Re1 {[%emt 0:10:24]} Nxc3 {[%emt 0:06:57]} 11. dxc3 {[%emt 0:19:23]} Qc7 {[%emt 0:05:27]} 12. e4 {[%emt 0:14:19]} c4 {[%emt 0:05:56]} 13. Qe2 {[%emt 0:04:39]} Nd7 {[%emt 0:02:59]} 14. b4 {[%emt 0:11:12]} a5 {[%emt 0:07:37]} 15. a3 {[%emt 0:03:05]} e5 {[%emt 0:03:36]} 16. b5 {[%emt 0:09:41]} a4 {[%emt 0:05:58]} 17. Bf1 {[%emt 0:04:14]} Rac8 {[%emt 0:08:08]} 18. Nd2 {[%emt 0:04:32]} Nc5 {[%emt 0:00:41]} 19. Qxc4 {[%emt 0:03:43]} Rfd8 {[%emt 0:01:15]} 20. Rad1 {[%emt 0:01:21]} Qb8 {[%emt 0:01:07]} 21. Qa2 {[%emt 0:02:05]} Nd3 {[%emt 0:02:18]} 22. Nc4 {[%emt 0:01:06]} Nxe1 {[%emt 0:01:39]} 23. Rxe1 {[%emt 0:00:03]} Qc7 {[%emt 0:01:33]} 24. Bc1 {[%emt 0:00:18]} Bc5 {[%emt 0:04:03]} 25. Qe2 {[%emt 0:00:05]} Rb8 {[%emt 0:01:38]} 26. Qh5 {[%emt 0:01:34]} f6 {[%emt 0:01:04]} 27. g4 {[%emt 0:01:03]} Qf7 {[%emt 0:01:30]} 28. Qh4 {[%emt 0:00:24]} Kh8 {[%emt 0:00:51]} 29. g5 {[%emt 0:00:34]} Rf8 {[%emt 0:02:23]} 30. Qg3 {[%emt 0:00:58]} Bc8 {[%emt 0:02:26]} 31. Be3 {[%emt 0:00:22]} Bxe3 {[%emt 0:01:17]} 32. Rxe3 {[%emt 0:00:05]} Be6 {[%emt 0:00:19]} 33. Nd2 {[%emt 0:00:44]} Rbd8 {[%emt 0:01:03]} 34. Nf3 {[%emt 0:00:13]} Rd1 {[%emt 0:00:22]} 35. Kg2 {[%emt 0:00:24]} Bc4 {[%emt 0:00:52]} 36. Be2 {[%emt 0:00:38]} Bxe2 {[%emt 0:00:08]} 37. Rxe2 {[%emt 0:00:03]} Qc4 {[%emt 0:00:48]} 0-1

[Event "European Womens-ch 2025"]
[Site "Rhodes"]
[Date "2025.03.31"]
[Round "1.58"]
[White "Kosma, Maria"]
[Black "Khurtsilava, Inga"]
[Result "1-0"]
[Annotator "RC"]
[ECO "A34"]
[WhiteElo "1826"]
[BlackElo "2214"]
[PlyCount "75"]
[EventDate "2025.03.29"]
[EventType "swiss"]
[EventCountry "GRE"]
[SourceTitle "playchess.com"]
[Source "ChessBase"]
[SourceQuality "1"]
[TimeControl "40/5400+30:1800+30"]

1. e4 {[%emt 0:00:04]} c5 {[%emt 0:00:15]} 2. Nf3 {[%emt 0:00:10]} b6 {[%emt 0:00:46]} 3. c4 {[%emt 0:02:06]} Bb7 {[%emt 0:00:43]} 4. Nc3 {[%emt 0:00:33]} Nf6 {[%emt 0:05:32]} 5. e5 {[%emt 0:13:00]} Ng4 {[%emt 0:00:36]} 6. h3 {[%emt 0:01:53]} Nh6 {[%emt 0:00:12]} 7. d4 {[%emt 0:01:21]} cxd4 {[%emt 0:01:43]} 8. Nxd4 {[%emt 0:00:15]} g6 {[%emt 0:06:06]} 9. Bf4 {[%emt 0:03:36]} Nc6 {[%emt 0:00:59]} 10. Nf3 {[%emt 0:07:01]} Nf5 {[%emt 0:04:40]} 11. Bd3 {[%emt 0:04:51]} Ncd4 {[%emt 0:09:08]} 12. Nxd4 {[%emt 0:02:09]} Nxd4 {[%emt 0:00:20]} 13. Be4 {[%emt 0:07:06]} Bxe4 {[%emt 0:01:54]} 14. Nxe4 {[%emt 0:06:02]} Ne6 {[%emt 0:01:59]} 15. Bg3 {[%emt 0:01:07]} Bg7 {[%emt 0:02:55]} 16. O-O {[%emt 0:02:27]} Qc7 {[%emt 0:08:07]} 17. Nf6+ {[%emt 0:10:40]} Bxf6 {[%emt 0:28:26]} 18. exf6 {[%emt 0:00:08]} Qc6 {[%emt 0:00:12]} 19. fxe7 {[%emt 0:04:07]} Kxe7 {[%emt 0:00:08]} 20. Re1 {[%emt 0:06:05]} h5 {[%emt 0:04:16]} 21. Qd4 {[%emt 0:09:59]} g5 {[%emt 0:04:22]} 22. Rad1 {[%emt 0:01:55]} Rag8 {[%emt 0:09:23]} 23. b4 {[%emt 0:02:23]} Kd8 {[%emt 0:02:23]} 24. Qf6+ {[%emt 0:01:16]} Kc8 {[%emt 0:00:01]} 25. Rd6 {[%emt 0:03:13]} Qb7 {[%emt 0:01:52]} 26. c5 {[%emt 0:03:10]} bxc5 {[%emt 0:01:16]} 27. bxc5 {[%emt 0:00:22]} h4 {[%emt 0:03:43]} 28. Bh2 {[%emt 0:05:26]} Re8 {[%emt 0:00:14]} 29. Qc3 {[%emt 0:01:05]} Nd8 {[%emt 0:00:12]} 30. Red1 {[%emt 0:00:49]} Nc6 {[%emt 0:01:29]} 31. Rxd7 {[%emt 0:00:43]} Qxd7 {[%emt 0:00:10]} 32. Rxd7 {[%emt 0:00:03]} Kxd7 {[%emt 0:00:10]} 33. Qd3+ {[%emt 0:00:04]} Kc8 {[%emt 0:01:12]} 34. Qa6+ {[%emt 0:00:01]} Kd8 {[%emt 0:00:07]} 35. Bd6 {[%emt 0:01:30]} Nd4 {[%emt 0:01:40]} 36. Qxa7 {[%emt 0:00:58]} Re1+ {[%emt 0:00:42]} 37. Kh2 {[%emt 0:00:05]} Rh6 {[%emt 0:00:34]} 38. Qc7+ {[%emt 0:00:17]} 1-0

[Event "European Womens-ch 2025"]
[Site "Rhodes"]
[Date "2025.03.31"]
[Round "1.59"]
[White "Velikic, Adela"]
[Black "Mitraka, Chrysoula-Paraskevi"]
[Result "1-0"]
[Annotator "RC"]
[ECO "B11"]
[WhiteElo "2214"]
[BlackElo "1820"]
[PlyCount "123"]
[EventDate "2025.03.29"]
[EventType "swiss"]
[EventCountry "GRE"]
[SourceTitle "playchess.com"]
[Source "ChessBase"]
[SourceQuality "1"]
[TimeControl "40/5400+30:1800+30"]

1. e4 {[%emt 0:00:03]} c6 {[%emt 0:00:42]} 2. Nf3 {[%emt 0:00:11]} d5 {[%emt 0:00:19]} 3. Nc3 {[%emt 0:00:10]} dxe4 {[%emt 0:00:20]} 4. Nxe4 {[%emt 0:00:08]} Nf6 {[%emt 0:00:20]} 5. Qe2 {[%emt 0:00:12]} Nxe4 {[%emt 0:00:30]} 6. Qxe4 {[%emt 0:00:05]} Nd7 {[%emt 0:00:41]} 7. Bc4 {[%emt 0:01:25]} Nf6 {[%emt 0:04:00]} 8. Ne5 {[%emt 0:00:24]} e6 {[%emt 0:00:51]} 9. Qe2 {[%emt 0:00:13]} Bd6 {[%emt 0:02:32]} 10. d4 {[%emt 0:03:33]} Qc7 {[%emt 0:02:28]} 11. O-O {[%emt 0:06:13]} O-O {[%emt 0:02:55]} 12. Re1 {[%emt 0:08:15]} c5 {[%emt 0:11:46]} 13. dxc5 {[%emt 0:09:57]} Qxc5 {[%emt 0:03:46]} 14. Bf4 {[%emt 0:11:14]} Nd7 {[%emt 0:09:37]} 15. Nd3 {[%emt 0:14:01]} Qc7 {[%emt 0:02:46]} 16. Bxd6 {[%emt 0:02:03]} Qxd6 {[%emt 0:02:58]} 17. Rad1 {[%emt 0:01:35]} Qc7 {[%emt 0:04:01]} 18. Nc1 {[%emt 0:02:08]} Nf6 {[%emt 0:48:58]} 19. Rd4 {[%emt 0:06:22]} b6 {[%emt 0:00:00]} 20. Nd3 {[%emt 0:03:28]} Bb7 {[%emt 0:00:00]} 21. Ne5 {[%emt 0:01:22]} Rad8 {[%emt 0:00:00]} 22. Red1 {[%emt 0:01:44]} Rxd4 {[%emt 0:00:00]} 23. Rxd4 {[%emt 0:00:06]} Rd8 {[%emt 0:00:00]} 24. Rxd8+ {[%emt 0:05:43]} Qxd8 {[%emt 0:00:00]} 25. Nxf7 {[%emt 0:01:33]} Qe7 {[%emt 0:00:00]} 26. Ng5 {[%emt 0:12:27]} Bd5 {[%emt 0:00:00]} 27. Bxd5 {[%emt 0:00:27]} Nxd5 {[%emt 0:00:00]} 28. Qxe6+ {[%emt 0:00:25]} Qxe6 {[%emt 0:00:00]} 29. Nxe6 {[%emt 0:00:05]} Nb4 {[%emt 0:00:00]} 30. Nd4 {[%emt 0:03:00]} Nxa2 {[%emt 0:00:07]} 31. f4 {[%emt 0:04:17]} Nb4 {[%emt 0:02:19]} 32. Kf2 {[%emt 0:03:41]} Nd5 {[%emt 0:02:11]} 33. Kf3 {[%emt 0:00:30]} Nf6 {[%emt 0:02:53]} 34. g4 {[%emt 0:00:00]} h6 {[%emt 0:00:00]} 35. c4 {[%emt 0:00:00]} Kf7 {[%emt 0:00:03]} 36. h4 a5 {[%emt 0:00:40]} 37. f5 Ke7 {[%emt 0:01:17]} 38. Kf4 {[%emt 0:01:49]} Nd7 {[%emt 0:00:00]} 39. g5 {[%emt 0:00:35]} hxg5+ {[%emt 0:00:00]} 40. hxg5 {[%emt 0:00:00]} Nc5 {[%emt 0:01:30]} 41. b3 {[%emt 0:31:36]} Nd7 {[%emt 0:03:42]} 42. Ne6 {[%emt 0:00:00]} g6 {[%emt 0:06:58]} 43. Nd4 {[%emt 0:00:00]} gxf5 {[%emt 0:06:05]} 44. Kxf5 {[%emt 0:00:00]} Kf7 {[%emt 0:15:15]} 45. g6+ {[%emt 0:02:00]} Kg7 {[%emt 0:00:00]} 46. Ne6+ {[%emt 0:00:00]} Kg8 {[%emt 0:00:00]} 47. Ke4 {[%emt 0:01:00]} Nf6+ {[%emt 0:00:05]} 48. Ke5 {[%emt 0:00:00]} Ng4+ {[%emt 0:00:21]} 49. Kd6 {[%emt 0:00:00]} Ne3 {[%emt 0:01:00]} 50. c5 {[%emt 0:00:28]} bxc5 {[%emt 0:00:18]} 51. Kxc5 {[%emt 0:00:38]} Nc2 {[%emt 0:00:54]} 52. Kc4 Na3+ {[%emt 0:00:30]} 53. Kd5 {[%emt 0:01:10]} Nc2 {[%emt 0:00:23]} 54. Ke5 {[%emt 0:00:39]} Na1 {[%emt 0:00:28]} 55. Nd4 {[%emt 0:00:12]} Kg7 {[%emt 0:00:35]} 56. Kf5 {[%emt 0:00:08]} Kg8 {[%emt 0:00:31]} 57. Kf6 {[%emt 0:00:06]} Kf8 {[%emt 0:00:28]} 58. g7+ {[%emt 0:00:31]} Kg8 {[%emt 0:00:31]} 59. Nf5 {[%emt 0:00:11]} Nxb3 {[%emt 0:00:45]} 60. Ne7+ {[%emt 0:00:07]} Kh7 {[%emt 0:00:14]} 61. g8=Q+ {[%emt 0:00:05]} Kh6 {[%emt 0:00:13]} 62. Qg6# {[%emt 0:00:07]} 1-0

[Event "European Womens-ch 2025"]
[Site "Rhodes"]
[Date "2025.03.31"]
[Round "1.60"]
[White "Bania, Eleni"]
[Black "Lehaci, Miruna-Daria"]
[Result "0-1"]
[Annotator "RC"]
[ECO "B60"]
[WhiteElo "1809"]
[BlackElo "2212"]
[PlyCount "66"]
[EventDate "2025.03.29"]
[EventType "swiss"]
[EventCountry "GRE"]
[SourceTitle "playchess.com"]
[Source "ChessBase"]
[SourceQuality "1"]
[TimeControl "40/5400+30:1800+30"]

1. e4 {[%emt 0:00:02]} c5 {[%emt 0:00:06]} 2. Nf3 {[%emt 0:00:05]} Nc6 {[%emt 0:00:05]} 3. d4 {[%emt 0:00:06]} cxd4 {[%emt 0:00:04]} 4. Nxd4 {[%emt 0:00:07]} Nf6 {[%emt 0:00:03]} 5. Nc3 {[%emt 0:00:16]} d6 {[%emt 0:00:04]} 6. Bg5 {[%emt 0:01:05]} a6 {[%emt 0:00:06]} 7. Qd3 {[%emt 0:03:49]} Bd7 {[%emt 0:01:12]} 8. f4 {[%emt 0:04:35]} Rc8 {[%emt 0:07:29]} 9. Nxc6 {[%emt 0:15:44]} Bxc6 {[%emt 0:02:30]} 10. Be2 {[%emt 0:02:52]} b5 {[%emt 0:07:15]} 11. O-O {[%emt 0:14:23]} e6 {[%emt 0:06:37]} 12. a3 {[%emt 0:07:58]} Be7 {[%emt 0:02:32]} 13. Rad1 {[%emt 0:01:25]} O-O {[%emt 0:06:09]} 14. Bf3 {[%emt 0:12:30]} Qc7 {[%emt 0:06:52]} 15. Kh1 {[%emt 0:07:22]} Rfd8 {[%emt 0:01:18]} 16. Qe2 {[%emt 0:01:56]} h6 {[%emt 0:07:06]} 17. Bh4 {[%emt 0:03:10]} Qb7 {[%emt 0:01:12]} 18. e5 {[%emt 0:02:28]} Bxf3 {[%emt 0:06:08]} 19. Qxf3 {[%emt 0:04:19]} Qxf3 {[%emt 0:00:44]} 20. Rxf3 {[%emt 0:00:08]} dxe5 {[%emt 0:00:57]} 21. Rxd8+ {[%emt 0:00:38]} Bxd8 {[%emt 0:03:25]} 22. fxe5 {[%emt 0:00:15]} Ng4 {[%emt 0:00:46]} 23. Bg3 {[%emt 0:06:57]} Bc7 {[%emt 0:01:01]} 24. Kg1 {[%emt 0:01:50]} Nxe5 {[%emt 0:01:29]} 25. Bxe5 {[%emt 0:00:49]} Bxe5 {[%emt 0:00:05]} 26. Kf2 {[%emt 0:00:13]} Bxc3 {[%emt 0:07:43]} 27. bxc3 {[%emt 0:04:50]} Rc4 {[%emt 0:00:03]} 28. Ke2 {[%emt 0:00:13]} Ra4 {[%emt 0:00:31]} 29. Kd2 {[%emt 0:00:34]} Kf8 {[%emt 0:01:59]} 30. Kc1 {[%emt 0:03:57]} Rxa3 {[%emt 0:00:20]} 31. Kb2 {[%emt 0:00:09]} Ra4 {[%emt 0:00:28]} 32. Kb3 {[%emt 0:00:10]} Ke7 {[%emt 0:00:53]} 33. h3 {[%emt 0:00:26]} f5 {[%emt 0:01:20]} 0-1